bitfinex/quotes_SOLUSD_20240718
["timestamp","ask_amount","ask_price","bid_price","bid_amount"]
[1721281190700,3.1504976,158.87,158.83,6.296]
[1721281190885,12.22,158.84,158.83,6.296]
[1721281191088,12.22,158.85,158.83,6.296]
[1721281191290,22.5891976,158.92,158.85,15.738]
[1721281191508,12.22,158.88,158.86,1.25883058]
[1721281191811,12.22,158.89,158.86,1.25883058]
[1721281192287,28.8816976,158.92,158.86,7.55323058]
[1721281192717,12.22,158.9,158.86,7.55323058]
[1721281193619,12.22,158.89,158.86,7.55323058]
[1721281193909,12.22,158.89,158.85,15.738]
[1721281194207,12.22,158.87,158.85,15.738]
[1721281194995,12.22,158.87,158.83,6.296]
[1721281195820,12.22,158.86,158.83,6.296]
[1721281196016,12.22,158.86,158.82,6.2964]
[1721281196221,12.22,158.85,158.82,1.25898491]
[1721281196423,38.3204976,158.92,158.81,15.7412]
[1721281196424,12.22,158.84,158.81,15.7412]
[1721281196723,6.2948,158.86,158.81,15.7412]
[1721281196724,12.22,158.83,158.81,15.7412]
[1721281197296,12.22,158.82,158.81,15.7412]
[1721281197819,12.22,158.83,158.81,15.7412]
[1721281199497,6.2968,158.81,158.72,57.0664]
[1721281199717,12.22,158.76,158.75,22.0469]
[1721281200017,12.22,158.77,158.75,22.0469]
[1721281200204,12.22,158.76,158.75,22.0469]
[1721281200401,12.22,158.78,158.76,6.2987]
[1721281200619,12.22,158.78,158.76,7.55828856]
[1721281200817,12.22,158.78,158.76,6.2987]
[1721281201021,16.2105,158.84,158.76,6.2987]
[1721281201022,12.22,158.79,158.76,1.2595873]
[1721281201232,12.22,158.79,158.78,6.298]
[1721281202030,16.2105,158.84,158.78,15.7449]
[1721281202208,16.2105,158.84,158.79,1.25924946]
[1721281202209,12.22,158.81,158.79,1.25924946]
[1721281202541,12.22,158.81,158.8,1.25930371]
[1721281202739,12.22,158.82,158.8,1.25930371]
[1721281203029,12.22,158.82,158.8,7.55630371]
[1721281203237,6.2969,158.81,158.76,6.2987]
[1721281203415,12.22,158.78,158.77,6.2984]
[1721281203609,12.22,158.79,158.77,6.2984]
[1721281203809,15.0046,158.88,158.76,15.7461]
[1721281204017,12.22,158.81,158.79,6.2972]
[1721281204218,6.2952,158.85,158.79,6.2972]
[1721281204732,6.2952,158.85,158.8,6.2971]
[1721281206621,6.2952,158.85,158.81,1.25922674]
[1721281206830,6.2956,158.84,158.78,22.0417]
[1721281207425,6.2953,158.85,158.79,6.2974]
[1721281207629,6.2953,158.85,158.8,7.55637365]
[1721281208322,6.2948,158.86,158.81,6.2968]
[1721281208521,30.6945,158.87,158.81,6.2968]
[1721281208717,6.295,158.86,158.81,6.2968]
[1721281208917,6.295,158.86,158.8,6.2971]
[1721281209119,6.2955,158.85,158.79,6.2975]
[1721281209324,24.4,158.87,158.79,6.2975]
[1721281209325,6.2956,158.84,158.79,6.2975]
[1721281210924,6.2956,158.84,158.78,22.042]
[1721281212021,6.2963,158.83,158.78,22.042]
[1721281213347,6.2952,158.85,158.78,15.7441]
[1721281213558,6.2952,158.85,158.79,1.25940407]
[1721281214652,6.2952,158.85,158.8,6.2972]
[1721281215158,24.4,158.87,158.79,1.25933347]
[1721281215159,6.2957,158.84,158.79,1.25933347]
[1721281215525,6.2957,158.84,158.78,22.0417]
[1721281215851,6.2957,158.84,158.79,1.2593325]
[1721281216153,6.2957,158.84,158.79,7.5567325]
[1721281216359,6.2957,158.84,158.78,15.7441]
[1721281216360,24.4,158.87,158.78,15.7441]
[1721281216535,6.2957,158.84,158.79,6.2974]
[1721281216735,24.4,158.87,158.78,15.7441]
[1721281217333,6.2969,158.81,158.76,6.2984]
[1721281217840,6.2963,158.83,158.77,6.2982]
[1721281218049,6.2965,158.82,158.77,6.2982]
[1721281218241,24.4,158.84,158.76,6.2987]
[1721281218242,6.297,158.81,158.76,6.2987]
[1721281218636,6.2965,158.82,158.77,6.2984]
[1721281219362,6.2965,158.82,158.76,6.2987]
[1721281220258,22.4228,158.83,158.74,22.0476]
[1721281220564,6.2976,158.79,158.74,22.0476]
[1721281220934,6.2972,158.8,158.74,22.0476]
[1721281221332,6.2972,158.8,158.75,7.55862857]
[1721281222057,6.2972,158.8,158.75,6.2989]
[1721281222253,22.4228,158.83,158.76,6.2987]
[1721281223936,6.2971,158.81,158.76,6.2987]
[1721281224359,12.2,158.78,158.76,6.2987]
[1721281225771,12.2,158.78,158.75,6.2991]
[1721281226256,12.2,158.78,158.76,6.2988]
[1721281227770,12.2,158.79,158.76,6.2988]
[1721281229359,12.2,158.79,158.74,15.7483]
[1721281229360,28.7191,158.83,158.77,6.2982]
[1721281229664,12.2,158.8,158.77,7.55776632]
[1721281229867,12.2,158.81,158.77,7.55776632]
[1721281230472,12.2,158.81,158.77,1.25956632]
[1721281230662,12.2,158.81,158.78,1.25942299]
[1721281231254,12.2,158.81,158.77,6.2984]
[1721281231649,12.2,158.81,158.78,7.5573009]
[1721281232569,12.2,158.81,158.79,1.25936249]
[1721281232979,12.2,158.83,158.8,6.2972]
[1721281233267,12.2,158.85,158.81,6.2968]
[1721281233439,12.2,158.84,158.81,6.2968]
[1721281234073,12.2,158.84,158.82,6.2963]
[1721281234658,12.2,158.84,158.81,6.2968]
[1721281235146,16.4864,158.87,158.8,15.7422]
[1721281235147,6.2953,158.85,158.8,15.7422]
[1721281235349,12.2,158.81,158.78,6.2979]
[1721281236542,12.2,158.81,158.77,7.55762868]
[1721281238262,12.2,158.81,158.78,6.2977]
[1721281238455,12.2,158.82,158.79,7.55685551]
[1721281238658,12.2,158.82,158.8,1.25928081]
[1721281239049,12.2,158.82,158.8,7.55638081]
[1721281239654,12.2,158.82,158.79,6.2975]
[1721281240361,22.7812,158.87,158.8,1.25928181]
[1721281240569,22.7812,158.87,158.8,17.00138181]
[1721281240570,12.2,158.84,158.8,17.00138181]
[1721281241568,12.2,158.85,158.81,6.2968]
[1721281241764,6.2948,158.86,158.82,1.25908833]
[1721281241956,12.2,158.85,158.83,1.25903424]
[1721281242342,12.2,158.86,158.82,6.2963]
[1721281242956,12.2,158.86,158.83,1.25895778]
[1721281243849,12.2,158.87,158.83,1.25895778]
[1721281244050,12.2,158.87,158.84,6.2956]
[1721281245176,12.2,158.87,158.82,22.0361]
[1721281245550,12.2,158.87,158.83,6.2959]
[1721281246477,12.2,158.87,158.83,7.55478525]
[1721281246700,6.2936,158.89,158.84,6.2956]
[1721281246977,12.2,158.88,158.85,1.25880782]
[1721281247174,12.2,158.88,158.86,1.25881105]
[1721281247554,18.4936,158.89,158.86,1.25881105]
[1721281248067,12.2,158.88,158.86,1.25881105]
[1721281248681,12.2,158.88,158.85,1.25881139]
[1721281249181,12.2,158.88,158.86,1.25880708]
[1721281249965,12.2,158.88,158.85,1.25880139]
[1721281250151,12.2,158.87,158.84,6.2956]
[1721281250345,12.2,158.87,158.84,7.55444702]
[1721281250966,12.2,158.88,158.84,7.55444702]
[1721281251961,18.4936,158.89,158.84,19.75444702]
[1721281252161,12.2,158.9,158.85,6.2951]
[1721281252473,12.2,158.9,158.86,1.25872403]
[1721281253051,18.4934,158.9,158.86,1.25872403]
[1721281254178,18.4934,158.9,158.85,6.2951]
[1721281254361,12.2,158.89,158.85,6.2951]
[1721281254856,12.2,158.89,158.84,12.2]
[1721281254857,12.2,158.88,158.84,6.2956]
[1721281256667,12.2,158.88,158.82,27.9401]
[1721281256866,12.2,158.87,158.82,27.9401]
[1721281257068,12.2,158.87,158.82,15.7401]
[1721281257461,12.2,158.86,158.83,6.2958]
[1721281258261,12.2,158.86,158.84,6.2955]
[1721281258458,12.2,158.86,158.82,15.7401]
[1721281258459,12.2,158.87,158.85,6.2952]
[1721281258659,12.2,158.86,158.83,6.2956]
[1721281259783,12.2,158.86,158.82,15.7401]
[1721281259784,12.2,158.86,158.84,6.2956]
[1721281260877,12.2,158.87,158.84,6.2956]
[1721281261275,12.2,158.87,158.85,6.2952]
[1721281261779,12.2,158.88,158.86,6.2948]
[1721281262358,12.2,158.89,158.84,27.9382]
[1721281262682,12.2,158.89,158.86,6.2945]
[1721281263569,7.1050976,158.92,158.87,6.2944]
[1721281263783,12.2,158.89,158.87,6.2944]
[1721281264087,12.2,158.89,158.86,6.2947]
[1721281264263,12.2,158.89,158.87,7.5531315]
[1721281264454,12.2,158.89,158.87,6.2944]
[1721281265670,12.2,158.89,158.86,6.2947]
[1721281265874,12.2,158.89,158.85,6.2951]
[1721281266075,12.2,158.88,158.85,6.2951]
[1721281267063,12.2,158.88,158.86,6.2948]
[1721281267577,12.2,158.88,158.87,6.2944]
[1721281267783,12.2,158.89,158.87,6.2944]
[1721281267978,7.1050976,158.92,158.87,6.2944]
[1721281267979,12.2,158.9,158.87,6.2944]
[1721281268178,12.2,158.9,158.87,7.55313532]
[1721281272167,12.2,158.89,158.87,7.55313532]
[1721281273191,12.2,158.88,158.86,15.7363]
[1721281274187,12.2,158.87,158.85,6.2948]
[1721281274488,12.2,158.88,158.85,6.2948]
[1721281274661,12.2,158.87,158.85,6.2948]
[1721281275277,12.2,158.86,158.83,15.7398]
[1721281275475,12.2,158.86,158.84,6.2955]
[1721281275662,6.294,158.88,158.83,22.0357]
[1721281275867,12.2,158.85,158.83,22.0357]
[1721281276587,12.2,158.85,158.84,6.2956]
[1721281276788,12.2,158.86,158.85,6.2951]
[1721281278567,15.8585,158.9,158.86,6.2946]
[1721281278790,12.2,158.88,158.86,6.2946]
[1721281280789,12.2,158.89,158.87,6.2944]
[1721281280988,12.2,158.89,158.86,1.25880992]
[1721281280989,12.2,158.9,158.86,1.25880992]
[1721281281182,12.2,158.91,158.88,6.294]
[1721281281990,12.2,158.91,158.87,22.0295]
[1721281282189,0.8125976,158.92,158.88,7.55260451]
[1721281282410,12.2,158.91,158.88,7.55260451]
[1721281285609,12.2,158.89,158.84,15.7389]
[1721281285772,12.2,158.87,158.84,22.0341]
[1721281286513,12.2,158.86,158.84,15.7389]
[1721281287413,12.2,158.86,158.84,22.0344]
[1721281287784,12.2,158.88,158.85,7.55417059]
[1721281288195,12.2,158.88,158.86,7.55365196]
[1721281288493,12.2,158.89,158.86,7.55365196]
[1721281289310,12.2,158.89,158.87,1.25876543]
[1721281289523,0.8125976,158.92,158.87,1.25876543]
[1721281289686,13.0125976,158.92,158.89,6.2936]
[1721281290016,13.0125976,158.92,158.88,1.25860334]
[1721281290326,12.2,158.9,158.87,6.294]
[1721281290479,12.2,158.89,158.87,6.294]
[1721281291214,12.2,158.89,158.86,22.0309]
[1721281291596,12.2,158.89,158.87,6.2944]
[1721281291795,0.8125976,158.92,158.88,6.294]
[1721281292008,12.2,158.91,158.89,6.2936]
[1721281292497,0.8125976,158.92,158.88,6.2939]
[1721281292704,12.2,158.91,158.88,6.2939]
[1721281296886,12.2,158.91,158.89,1.25860529]
[1721281297088,13.0125976,158.92,158.89,1.25860529]
[1721281297290,13.0125976,158.92,158.88,7.55249687]
[1721281298198,12.2,158.91,158.88,7.55249687]
[1721281298400,12.2,158.91,158.88,6.2939]
[1721281298604,12.2,158.91,158.88,7.55250756]
[1721281299693,13.0125976,158.92,158.89,1.25858656]
[1721281302104,0.8125976,158.92,158.9,1.25855403]
[1721281302608,0.8125976,158.92,158.9,7.55175403]
[1721281303211,0.8125976,158.92,158.91,1.25841706]
[1721281304337,13.0125976,158.92,158.87,1.25841768]
[1721281304529,12.2,158.91,158.84,15.7385]
[1721281304826,12.2,158.9,158.85,12.2]
[1721281305013,18.494,158.88,158.84,15.7385]
[1721281305200,12.2,158.88,158.84,22.0341]
[1721281305927,6.2937,158.89,158.84,22.0341]
[1721281305928,12.2,158.87,158.84,22.0341]
[1721281306629,12.2,158.87,158.85,6.2952]
[1721281307020,6.2929,158.91,158.86,6.2948]
[1721281307213,12.2,158.88,158.86,6.2948]
[1721281308009,12.2,158.9,158.87,6.2944]
[1721281308637,12.2,158.9,158.86,15.7361]
[1721281308810,12.2,158.91,158.87,1.25864768]
[1721281309507,12.2,158.91,158.88,6.2939]
[1721281310541,0.8125976,158.92,158.89,13.45863007]
[1721281310709,0.8125976,158.92,158.9,6.2932]
[1721281310905,0.8125976,158.92,158.89,6.2936]
[1721281311812,13.0125976,158.92,158.89,6.2936]
[1721281312636,13.0125976,158.92,158.9,6.2932]
[1721281314827,0.8125976,158.92,158.91,7.55128709]
[1721281315127,0.8125976,158.92,158.91,6.2928]
[1721281316113,0.8125976,158.92,158.91,35.48322644]
[1721281316323,0.8125976,158.92,158.91,45.48322644]
[1721281316521,0.8125976,158.92,158.91,90.48322644]
[1721281316733,0.8125976,158.92,158.91,89.2249]
[1721281317332,0.8125976,158.92,158.91,22.0249]
[1721281317652,0.8125976,158.92,158.91,15.7321]
[1721281319935,0.8125976,158.92,158.91,22.0249]
[1721281320441,0.8125976,158.92,158.91,34.2249]
[1721281321146,0.8125976,158.92,158.91,44.2249]
[1721281321350,0.8125976,158.92,158.91,89.2249]
[1721281322361,0.8125976,158.92,158.91,95.5359]
[1721281322920,0.8125976,158.92,158.91,89.2249]
[1721281323553,0.8125976,158.92,158.91,89.3949]
[1721281323755,0.8125976,158.92,158.91,89.5649]
[1721281324347,0.8125976,158.92,158.91,106.34063134]
[1721281325252,0.8125976,158.92,158.91,112.65163134]
[1721281325563,0.8125976,158.92,158.91,106.34063134]
[1721281325765,0.8125976,158.92,158.91,105.0828]
[1721281326272,0.8125976,158.92,158.91,59.9128]
[1721281326445,0.8125976,158.92,158.91,22.0249]
[1721281326640,0.8125976,158.92,158.91,34.2249]
[1721281326848,0.8125976,158.92,158.91,22.0249]
[1721281327547,0.8125976,158.92,158.89,6.2936]
[1721281328860,0.8125976,158.92,158.9,1.2584746]
[1721281329176,0.8125976,158.92,158.91,22.0249]
[1721281330339,0.8125976,158.92,158.91,32.0249]
[1721281330546,0.8125976,158.92,158.91,77.0249]
[1721281330962,0.8125976,158.92,158.91,77.1949]
[1721281331371,0.8125976,158.92,158.91,92.8211]
[1721281331678,0.8125976,158.92,158.91,99.4071]
[1721281332475,0.8125976,158.92,158.91,92.8211]
[1721281332676,0.8125976,158.92,158.91,94.07916513]
[1721281332871,0.8125976,158.92,158.91,92.8211]
[1721281333062,0.8125976,158.92,158.91,122.8211]
[1721281334170,0.8125976,158.92,158.91,107.0249]
[1721281334371,0.8125976,158.92,158.91,62.0249]
[1721281334876,0.8125976,158.92,158.91,107.0249]
[1721281335266,0.8125976,158.92,158.91,77.0249]
[1721281337057,0.8125976,158.92,158.91,22.0249]
[1721281338159,0.8125976,158.92,158.91,32.0249]
[1721281339580,0.8125976,158.92,158.91,22.0249]
[1721281340672,0.8125976,158.92,158.88,15.735]
[1721281341056,0.8125976,158.92,158.89,10.0]
[1721281341359,0.8125976,158.92,158.91,6.2928]
[1721281342356,0.8125976,158.92,158.91,7.55124321]
[1721281343666,0.8125976,158.92,158.91,52.55124321]
[1721281343856,0.8125976,158.92,158.91,7.55124321]
[1721281344173,0.8125976,158.92,158.91,6.2928]
[1721281345272,0.8125976,158.92,158.91,51.2928]
[1721281345987,0.8125976,158.92,158.91,6.2928]
[1721281348776,0.8125976,158.92,158.91,7.5511381]
[1721281348987,0.8125976,158.92,158.91,6.2928]
[1721281351494,0.8125976,158.92,158.91,7.55113639]
[1721281352267,0.8125976,158.92,158.91,7.55106754]
[1721281354207,0.8125976,158.92,158.91,6.2928]
[1721281354719,0.8125976,158.92,158.91,7.55106351]
[1721281354889,0.8125976,158.92,158.91,6.2928]
[1721281359413,0.8125976,158.92,158.91,7.55110317]
[1721281359905,0.8125976,158.92,158.91,19.73110317]
[1721281360486,0.8125976,158.92,158.91,7.55110317]
[1721281360686,0.8125976,158.92,158.91,6.2928]
[1721281360887,0.8125976,158.92,158.9,22.0253]
[1721281363948,12.9925976,158.92,158.9,22.0253]
[1721281364255,12.18,158.91,158.9,15.7321]
[1721281364547,12.18,158.91,158.88,6.294]
[1721281364769,12.18,158.89,158.87,15.7359]
[1721281364955,12.18,158.88,158.87,15.7359]
[1721281365155,12.18,158.88,158.87,22.0303]
[1721281365367,12.18,158.88,158.83,47.2182]
[1721281365669,12.18,158.87,158.83,47.2182]
[1721281366044,12.18,158.87,158.85,6.2952]
[1721281366243,6.2934,158.9,158.84,6.2956]
[1721281366464,6.2936,158.89,158.84,6.2956]
[1721281368348,6.294,158.88,158.83,22.0351]
[1721281369164,21.5736,158.87,158.83,22.0351]
[1721281370153,21.5736,158.87,158.84,6.2954]
[1721281371684,21.5736,158.87,158.83,22.0351]
[1721281375579,21.5736,158.87,158.8,15.743]
[1721281375759,6.2952,158.85,158.8,15.743]
[1721281375960,6.2958,158.84,158.77,15.7459]
[1721281376946,6.2958,158.84,158.79,6.2974]
[1721281377375,6.2955,158.85,158.8,6.2971]
[1721281379250,6.2955,158.85,158.8,5.7971]
[1721281379452,6.2955,158.85,158.79,6.2975]
[1721281379651,21.5736,158.87,158.8,1.2593102]
[1721281379870,6.2956,158.84,158.8,1.2593102]
[1721281380266,6.2956,158.84,158.79,6.2975]
[1721281381211,6.2956,158.84,158.78,6.2979]
[1721281381777,6.2953,158.85,158.79,7.55684473]
[1721281381977,6.2953,158.85,158.8,7.55632879]
[1721281382192,6.2949,158.86,158.8,7.55632879]
[1721281382397,21.5736,158.87,158.8,17.00212879]
[1721281382586,21.5736,158.87,158.8,15.7429]
[1721281382896,21.5736,158.87,158.79,6.2973]
[1721281382897,6.2956,158.84,158.79,6.2973]
[1721281383077,6.2961,158.83,158.78,6.2979]
[1721281384994,6.2964,158.82,158.77,15.7458]
[1721281385893,6.296,158.83,158.77,15.7458]
[1721281386074,6.296,158.83,158.78,1.25946442]
[1721281386278,12.2,158.81,158.78,1.25946442]
[1721281386686,12.2,158.82,158.79,6.2976]
[1721281387211,12.2,158.82,158.78,7.55736442]
[1721281387792,12.2,158.82,158.79,6.2975]
[1721281388091,12.2,158.83,158.8,1.2593541]
[1721281388393,12.2,158.84,158.8,7.5564541]
[1721281389896,12.2,158.85,158.81,6.2967]
[1721281390084,12.2,158.85,158.82,1.25912006]
[1721281390278,12.2,158.86,158.83,1.25912098]
[1721281392189,12.2,158.86,158.82,6.2963]
[1721281392716,15.1456,158.87,158.83,6.296]
[1721281393011,12.2,158.86,158.82,6.2964]
[1721281393607,12.2,158.85,158.81,22.0378]
[1721281396293,12.2,158.84,158.81,22.0378]
[1721281396500,12.2,158.83,158.8,6.2971]
[1721281398478,12.2,158.82,158.8,6.2971]
[1721281398885,12.2,158.83,158.8,6.2971]
[1721281400594,12.2,158.82,158.8,6.2971]
[1721281401113,12.2,158.82,158.79,6.2975]
[1721281401287,15.1456,158.87,158.8,72.942]
[1721281401486,15.1456,158.87,158.81,12.2]
[1721281401487,12.2,158.86,158.81,12.2]
[1721281401682,12.2,158.86,158.82,1.25909634]
[1721281402296,12.2,158.85,158.81,6.2967]
[1721281402603,12.2,158.84,158.81,6.2967]
[1721281403103,11.7,158.84,158.81,6.2967]
[1721281405811,12.2,158.85,158.81,7.55589248]
[1721281406112,12.2,158.86,158.81,13.45919248]
[1721281406292,12.2,158.86,158.81,12.2]
[1721281406493,12.2,158.84,158.81,6.2964]
[1721281406804,12.2,158.85,158.81,6.2964]
[1721281407693,21.4403,158.87,158.82,6.2962]
[1721281408013,12.2,158.85,158.83,6.2959]
[1721281408218,12.2,158.85,158.82,6.2963]
[1721281408587,12.2,158.86,158.83,7.55496093]
[1721281408991,12.2,158.85,158.82,6.2963]
[1721281409303,12.2,158.85,158.81,6.2967]
[1721281412907,6.0233,158.89,158.82,15.7402]
[1721281413107,6.0233,158.89,158.83,19.75485363]
[1721281413108,18.494,158.88,158.83,19.75485363]
[1721281413309,12.2,158.87,158.83,6.2959]
[1721281413494,12.2,158.87,158.83,7.55490725]
[1721281413692,12.2,158.87,158.83,7.55490082]
[1721281413890,12.2,158.87,158.83,6.2959]
[1721281414691,12.2,158.86,158.83,6.2959]
[1721281419499,12.2,158.87,158.83,6.2959]
[1721281421514,12.3172,158.89,158.84,1.25897895]
[1721281421702,12.3172,158.89,158.83,6.2956]
[1721281421703,6.2941,158.88,158.83,6.2956]
[1721281421907,6.0233,158.89,158.82,15.7402]
[1721281422106,12.2,158.85,158.82,15.7402]
[1721281422303,12.2,158.84,158.79,22.2]
[1721281422614,12.2,158.84,158.8,6.2971]
[1721281423911,12.2,158.84,158.81,6.2968]
[1721281425213,12.2,158.88,158.78,37.0606]
[1721281425214,6.2944,158.87,158.82,6.2964]
[1721281425401,12.2,158.85,158.82,6.2964]
[1721281425602,12.2,158.84,158.81,6.2967]
[1721281426304,12.2,158.84,158.82,6.2963]
[1721281427629,12.2,158.84,158.81,6.2967]
[1721281427829,12.2,158.85,158.81,7.55583887]
[1721281428031,12.3169,158.89,158.84,6.2956]
[1721281428321,12.2,158.87,158.84,6.2956]
[1721281428550,12.2,158.87,158.83,7.55491651]
[1721281430529,12.2,158.87,158.83,6.2959]
[1721281430828,18.4945,158.87,158.82,34.2366]
[1721281431631,12.2,158.86,158.82,22.0366]
[1721281432007,12.2,158.86,158.81,18.4967]
[1721281432317,12.2,158.86,158.82,45.0]
[1721281432924,18.4948,158.86,158.82,45.0]
[1721281433434,12.2,158.86,158.82,51.2964]
[1721281434313,12.2,158.86,158.82,6.2964]
[1721281434508,18.4949,158.86,158.81,12.2]
[1721281434831,18.4953,158.85,158.8,44.239]
[1721281435019,18.4953,158.85,158.8,32.039]
[1721281435332,6.2953,158.85,158.8,32.039]
[1721281435628,18.4953,158.85,158.8,32.039]
[1721281436728,12.2,158.84,158.8,22.039]
[1721281437732,12.2,158.84,158.81,6.2968]
[1721281440741,12.2,158.84,158.82,6.2964]
[1721281449029,12.2,158.83,158.8,15.7422]
[1721281449328,12.2,158.83,158.78,6.298]
[1721281449329,12.2,158.81,158.78,6.298]
[1721281449729,12.2,158.8,158.78,6.298]
[1721281450445,12.2,158.8,158.77,6.2983]
[1721281452236,12.2,158.8,158.78,6.298]
[1721281461365,12.2,158.8,158.77,6.2983]
[1721281462655,6.296,158.83,158.78,6.2979]
[1721281462986,12.2,158.8,158.78,6.2979]
[1721281465863,12.2,158.8,158.77,6.2983]
[1721281466567,12.2,158.8,158.77,7.55784592]
[1721281466963,12.2,158.8,158.77,6.2983]
[1721281467754,12.2,158.8,158.77,7.5578463]
[1721281467978,12.2,158.8,158.77,6.2983]
[1721281469047,15.1255,158.81,158.78,15.7442]
[1721281469253,27.3255,158.81,158.78,22.0421]
[1721281469453,12.2,158.8,158.78,22.0421]
[1721281472256,12.2,158.82,158.79,6.2975]
[1721281473156,12.2,158.82,158.78,22.0421]
[1721281475666,6.296,158.83,158.79,1.25941874]
[1721281475967,12.2,158.81,158.78,15.7442]
[1721281476363,18.4965,158.82,158.78,17.00359013]
[1721281476692,6.296,158.83,158.78,23.30149013]
[1721281476891,12.2,158.82,158.78,22.0421]
[1721281477062,12.2,158.81,158.78,22.0421]
[1721281483286,12.2,158.81,158.78,15.7442]
[1721281485701,12.2,158.81,158.78,17.00362637]
[1721281485994,12.2,158.85,158.81,6.2967]
[1721281486162,18.4952,158.86,158.82,1.2591428]
[1721281487088,18.4952,158.85,158.81,1.25915446]
[1721281488685,12.2,158.84,158.81,1.25915446]
[1721281489671,12.2,158.84,158.8,6.2971]
[1721281490800,6.2949,158.86,158.81,7.55586938]
[1721281490972,12.2,158.85,158.81,7.55586938]
[1721281491869,12.2,158.84,158.81,6.2967]
[1721281492066,12.2,158.84,158.8,1.25917003]
[1721281492292,12.2,158.83,158.79,6.2972]
[1721281492506,12.2,158.82,158.78,22.0421]
[1721281492675,12.2,158.81,158.78,22.0421]
[1721281494110,12.2,158.81,158.78,15.7442]
[1721281494613,12.2,158.8,158.78,15.7442]
[1721281495088,12.2,158.81,158.78,15.7442]
[1721281495709,12.2,158.81,158.78,22.042]
[1721281496807,15.2658,158.84,158.78,22.042]
[1721281497117,12.2,158.81,158.78,22.042]
[1721281497709,12.2,158.81,158.79,6.2975]
[1721281497906,12.2,158.82,158.79,7.5569133]
[1721281498204,12.2,158.82,158.79,6.2975]
[1721281498788,12.2,158.82,158.79,7.55689498]
[1721281499897,12.2,158.82,158.79,6.2975]
[1721281500282,12.2,158.82,158.78,22.0421]
[1721281500482,12.2,158.81,158.79,6.2975]
[1721281500713,12.2,158.82,158.79,6.2975]
[1721281501492,12.2,158.83,158.8,7.55626026]
[1721281501811,12.2,158.84,158.8,7.55626026]
[1721281502717,6.2948,158.86,158.81,6.2967]
[1721281502901,12.2,158.84,158.81,6.2967]
[1721281503305,12.2,158.85,158.81,6.2967]
[1721281504182,12.2,158.85,158.78,25.7442]
[1721281504416,12.2,158.84,158.78,27.9442]
[1721281504589,34.8498,158.88,158.78,15.7442]
[1721281504790,12.2,158.82,158.78,15.7442]
[1721281505094,12.2,158.83,158.79,1.25937187]
[1721281505296,12.2,158.82,158.79,1.25937187]
[1721281505709,71.4498,158.88,158.8,1.25937051]
[1721281505913,18.4956,158.84,158.8,1.25937051]
[1721281506221,12.2,158.82,158.79,6.2972]
[1721281507614,12.2,158.81,158.77,6.298]
[1721281507790,12.2,158.82,158.78,7.55741725]
[1721281508416,12.2,158.81,158.77,6.2984]
[1721281509409,12.2,158.81,158.78,7.55736716]
[1721281509790,12.2,158.82,158.78,7.55736716]
[1721281510312,12.2,158.81,158.78,7.55736446]
[1721281511506,12.2,158.81,158.78,6.2979]
[1721281512688,12.2,158.82,158.78,6.2979]
[1721281513211,12.2,158.81,158.78,6.2979]
[1721281514213,12.2,158.82,158.78,6.2979]
[1721281515004,12.2,158.82,158.79,6.2975]
[1721281515622,12.2,158.82,158.78,6.2979]
[1721281515919,12.2,158.82,158.77,27.9451]